fUSD/lending_fUSD_20241106
["ID","MTS","AMOUNT","RATE_DAILY","PERIOD"]
[341396133,1730862772278,-674.92,0.00038356,14]
[341396134,1730862772289,-500.0,0.00038356,14]
[341396135,1730862772299,-524.14128695,0.00038356,14]
[341396136,1730862772309,-674.92,0.00038356,14]
[341396137,1730862772319,-500.0,0.00038356,14]
[341396138,1730862772330,-674.92,0.00038356,14]
[341396139,1730862772340,-500.0,0.00038356,14]
[341396140,1730862772351,-500.0,0.00038356,14]
[341396141,1730862772361,-674.92,0.00038356,14]
[341396142,1730862772373,-500.0,0.00038356,14]
[341396143,1730862772382,-674.92,0.00038356,14]
[341396144,1730862772392,-500.0,0.00038356,14]
[341396145,1730862772402,-318.47258064,0.00038356,14]
[341396146,1730862772413,-674.92,0.00038356,14]
[341396147,1730862772423,-500.0,0.00038356,14]
[341396148,1730862772432,-674.92,0.00038356,14]
[341396149,1730862772442,-402.72666964,0.00038356,14]
[341396150,1730862772452,-674.92,0.00038356,14]
[341396151,1730862772463,-675.11650294,0.00038356,14]
[341396152,1730862772473,-192.400554,0.00038356,7]
[341396153,1730862772482,-156.834699,0.00038356,7]
[341396154,1730862772492,-156.663735,0.00038356,7]
[341396155,1730862772502,-204.073262,0.00038356,7]
[341396156,1730862772512,-204.073262,0.00038356,7]
[341396157,1730862772522,-204.073262,0.00038356,7]
[341396158,1730862772532,-204.073262,0.00038356,7]
[341396159,1730862772542,-204.073262,0.00038356,7]
[341396160,1730862772552,-204.073262,0.00038356,7]
[341396161,1730862772562,-204.073262,0.00038356,7]
[341396162,1730862772573,-204.073262,0.00038356,7]
[341396163,1730862772583,-204.073262,0.00038356,7]
[341396164,1730862772594,-204.073262,0.00038356,7]
[341396165,1730862772603,-204.073262,0.00038356,7]
[341396166,1730862772613,-204.07326,0.00038356,7]
[341396167,1730862772627,-176.757351,0.00038356,7]
[341396168,1730862772636,-176.757351,0.00038356,7]
[341396169,1730862772646,-176.757351,0.00038356,7]
[341396170,1730862772657,-176.757351,0.00038356,7]
[341396171,1730862772667,-151.0,0.00038356,7]
[341396172,1730862772677,-176.757351,0.00038356,7]
[341396173,1730862772688,-151.0,0.00038356,7]
[341396174,1730862772698,-176.757351,0.00038356,7]
[341396175,1730862772708,-151.0,0.00038356,7]
[341396176,1730862772718,-151.0,0.00038356,7]
[341396177,1730862772728,-151.0,0.00038356,7]
[341396178,1730862772738,-151.0,0.00038356,7]
[341396179,1730862772747,-176.757351,0.00038356,7]
[341396180,1730862772757,-176.757351,0.00038356,7]
[341396181,1730862772768,-176.757351,0.00038356,7]
[341396182,1730862772778,-176.757351,0.00038356,7]
[341396183,1730862772787,-176.757351,0.00038356,7]
[341396184,1730862772797,-176.757355,0.00038356,7]
[341396185,1730862772807,-151.0,0.00038356,7]
[341396186,1730862772817,-151.0,0.00038356,7]
[341396187,1730862772827,-151.0,0.00038356,7]
[341396188,1730862772838,-2068.42496392,0.00038356,120]
[341396189,1730862772849,-165.290867,0.00038356,7]
[341396190,1730862772859,-165.290867,0.00038356,7]
[341396191,1730862772873,-165.290867,0.00038356,7]
[341396192,1730862772884,-165.290858,0.00038356,7]
[341396193,1730862772894,-1526.182595,0.00038356,7]
[341396194,1730862772903,-1526.182595,0.00038356,7]
[341396195,1730862772913,-1526.182595,0.00038356,7]
[341396196,1730862772924,-1526.182604,0.00038356,7]
[341396197,1730862772934,-120122.16,0.00038356,2]
[341396198,1730862772945,-8546.61,0.00038356,2]
[341396199,1730862772955,-500.0,0.00038373,5]
[341396200,1730862772965,-154.32781955,0.00038373,5]
[341396201,1730862772975,-167.21,0.00038395,2]
[341396202,1730862772984,-271.81,0.000384,14]
[341396203,1730862772995,-1627.81342935,0.00038415,2]
[341396204,1730862773004,-284.47681389,0.00038631,7]
[341396205,1730862773014,-289.77066552,0.00038631,7]
[341396206,1730862773024,-484.62,0.00038634,2]
[341396207,1730862773034,-150.0,0.00038699,2]
[341396208,1730862773044,-150.0,0.00038699,2]
[341396209,1730862773054,-150.0,0.00038702,2]
[341396210,1730862773064,-150.0,0.00038707,2]
[341396211,1730862773073,-150.0,0.00038707,2]
[341396212,1730862773083,-150.0,0.00038712,2]
[341396213,1730862773092,-150.0,0.00038716,2]
[341396214,1730862773102,-150.0,0.00038717,2]
[341396215,1730862773112,-150.0,0.00038721,2]
[341396216,1730862773125,-150.0,0.00038722,2]
[341396217,1730862773134,-1500.0,0.00038726,2]
[341396218,1730862773144,-150.0,0.00038729,2]
[341396219,1730862773154,-150.0,0.00038739,2]
[341396220,1730862773164,-150.0,0.0003874,2]
[341396221,1730862773174,-150.0,0.00038741,2]
[341396222,1730862773184,-150.0,0.00038743,2]
[341396223,1730862773194,-150.0,0.00038744,2]
[341396224,1730862773204,-150.0,0.00038746,2]
[341396225,1730862773213,-150.0,0.00038748,2]
[341396226,1730862773223,-150.0,0.00038751,2]
[341396227,1730862773233,-150.0,0.00038753,2]
[341396228,1730862773243,-150.0,0.00038754,2]
[341396229,1730862773252,-150.0,0.00038755,2]
[341396230,1730862773263,-150.0,0.00038765,2]
[341396231,1730862773272,-150.0,0.00038766,2]
[341396232,1730862773283,-150.0,0.00038767,2]
[341396233,1730862773292,-150.0,0.00038772,2]
[341396234,1730862773302,-1500.0,0.00038772,2]
[341396235,1730862773312,-150.0,0.00038773,2]
[341396236,1730862773322,-150.0,0.00038774,2]
[341396237,1730862773332,-1261.65848454,0.00038779,2]
[341396238,1730862773341,-150.0,0.0003878,2]
[341396239,1730862773351,-150.0,0.00038786,2]
[341396240,1730862773361,-150.0,0.00038788,2]
[341396241,1730862773372,-150.0,0.00038789,2]
[341396242,1730862773382,-150.0,0.00038791,2]
[341396243,1730862773393,-150.0,0.00038794,2]
[341396244,1730862773403,-150.0,0.00038799,2]
[341396245,1730862773413,-150.0,0.0003881,2]
[341396246,1730862773423,-150.0,0.00038811,2]
[341396247,1730862773433,-150.0,0.00038818,2]
[341396248,1730862773444,-150.0,0.0003882,2]
[341396249,1730862773453,-150.0,0.00038822,2]
[341396250,1730862773463,-150.0,0.00038822,2]
[341396251,1730862773473,-150.0,0.00038824,2]
[341396252,1730862773483,-150.0,0.00038826,2]
[341396253,1730862773493,-150.0,0.0003883,2]
[341396254,1730862773504,-3993.44343,0.0003883,2]
[341396255,1730862773514,-150.0,0.00038831,2]
[341396256,1730862773524,-150.0,0.00038833,2]
[341396257,1730862773534,-161.411,0.00038833,120]
[341396258,1730862773544,-150.0,0.00038834,2]
[341396259,1730862773554,-150.0,0.00038838,2]
[341396260,1730862773564,-150.0,0.00038842,2]
[341396261,1730862773574,-150.0,0.00038843,2]
[341396262,1730862773585,-150.0,0.00038848,2]
[341396263,1730862773595,-150.0,0.00038856,2]
[341396264,1730862773605,-150.0,0.00038858,2]
[341396265,1730862773616,-150.0,0.00038871,2]
[341396266,1730862773631,-1500.0,0.00038871,2]
[341396267,1730862773642,-150.0,0.00038876,2]
[341396268,1730862773652,-150.0,0.00038882,2]
[341396269,1730862773662,-150.0,0.00038883,2]
[341396270,1730862773672,-150.0,0.00038883,2]
[341396271,1730862773683,-150.0,0.00038887,2]
[341396272,1730862773693,-150.0,0.00038889,2]
[341396273,1730862773704,-150.0,0.00038895,2]
[341396274,1730862773714,-150.0,0.00038898,2]
[341396275,1730862773725,-150.0,0.00038903,2]
[341396276,1730862773735,-150.0,0.00038905,2]
[341396277,1730862773746,-150.0,0.00038906,2]
[341396278,1730862773756,-203.47321941,0.00038907,2]
[341396279,1730862773766,-1500.0,0.00038909,2]
[341396280,1730862773777,-150.0,0.0003891,2]
[341396281,1730862773787,-150.0,0.00038911,2]
[341396282,1730862773797,-509.84166534,0.00038911,5]
[341396283,1730862773807,-503.07357796,0.00038911,5]
[341396284,1730862773817,-512.19995754,0.00038911,5]
[341396285,1730862773827,-150.0,0.00038912,2]
[341396286,1730862773837,-150.0,0.00038914,2]
[341396287,1730862773847,-150.0,0.00038915,2]
[341396288,1730862773860,-150.0,0.00038916,2]
[341396289,1730862773871,-150.0,0.00038918,2]
[341396290,1730862773882,-150.0,0.00038918,2]
[341396291,1730862773892,-150.0,0.00038927,2]
[341396292,1730862773901,-150.0,0.0003893,2]
[341396293,1730862773912,-150.0,0.00038931,2]
[341396294,1730862773921,-996.55237264,0.00038932,2]
[341396295,1730862773933,-150.0,0.00038935,2]
[341396296,1730862773943,-150.0,0.00038939,2]
[341396297,1730862773953,-150.0,0.00038941,2]
[341396298,1730862773963,-1546.0,0.00038944,3]
[341396299,1730862773973,-150.0,0.00038947,2]
[341396300,1730862773984,-150.0,0.00038948,2]
[341396301,1730862773994,-150.0,0.00038951,2]
[341396302,1730862774004,-679.69,0.00038954,14]
[341396303,1730862774014,-528.07,0.00038954,14]
[341396304,1730862774024,-573.3,0.00038954,14]
[341396305,1730862774034,-1030.74,0.00038954,14]
[341396306,1730862774045,-567.28,0.00038954,14]
[341396307,1730862774054,-150.0,0.0003896,2]
[341396308,1730862774064,-150.0,0.00038964,2]
[341396309,1730862774074,-150.0,0.00038969,2]
[341396310,1730862774084,-150.0,0.0003897,2]
[341396311,1730862774095,-150.0,0.00038973,2]
[341396312,1730862774105,-3641.5943039,0.00038973,2]
[341396313,1730862774116,-679.69,0.00038978,14]
[341396314,1730862774132,-679.69,0.00038978,14]
[341396315,1730862774142,-679.69,0.00038978,14]
[341396316,1730862774152,-679.69,0.00038978,14]
[341396317,1730862774164,-679.69,0.00038978,14]
[341396318,1730862774368,-679.7145895,0.00038978,14]
[341396319,1730862774383,-528.07,0.00038978,14]
[341396320,1730862774398,-528.07,0.00038978,14]
[341396321,1730862774408,-528.07,0.00038978,14]
[341396322,1730862774418,-528.07,0.00038978,14]
[341396323,1730862774428,-528.07,0.00038978,14]
[341396324,1730862774438,-528.19453755,0.00038978,14]
[341396325,1730862774447,-573.3,0.00038978,14]
[341396326,1730862774458,-573.3,0.00038978,14]
[341396327,1730862774468,-573.3,0.00038978,14]
[341396328,1730862774478,-573.3,0.00038978,14]
[341396329,1730862774487,-573.3,0.00038978,14]
[341396330,1730862774497,-573.38137271,0.00038978,14]
[341396331,1730862774506,-1030.74,0.00038978,14]
[341396332,1730862774516,-1030.74,0.00038978,14]
[341396333,1730862774526,-1030.74,0.00038978,14]
[341396334,1730862774536,-1030.74,0.00038978,14]
[341396335,1730862774546,-1030.74,0.00038978,14]
[341396336,1730862774556,-1030.93787364,0.00038978,14]
[341396337,1730862774566,-567.28,0.00038978,14]
[341396338,1730862774576,-567.28,0.00038978,14]
[341396339,1730862774586,-567.28,0.00038978,14]
[341396340,1730862774595,-567.28,0.00038978,14]
[341396341,1730862774605,-6600.0,0.0003898,120]
[341396342,1730862774614,-1060.36,0.00038983,120]
[341396343,1730862774630,-150.0,0.00038998,14]
[341396344,1730862774640,-201.6763901,0.00038998,14]
[341396345,1730862774650,-500.0,0.00038998,14]
[341396346,1730862774660,-569.0,0.00038998,14]
[341396347,1730862774670,-150.0,0.00038998,2]
[341396348,1730862774680,-150.0,0.00038998,14]
[341396349,1730862774691,-500.0,0.00038999,15]
[341396350,1730862774700,-500.0,0.00038999,15]
[341396351,1730862774710,-635.58435616,0.00038999,15]
[341396352,1730862774719,-500.0,0.00038999,15]
[341396353,1730862774728,-500.0,0.00038999,15]
[341396354,1730862774738,-500.0,0.00038999,15]
[341396355,1730862774748,-500.0,0.00038999,15]
[341396356,1730862774758,-500.0,0.00038999,15]
[341396357,1730862774768,-1591847.21872152,0.00039,2]
[341396358,1730862774778,-900.0,0.00039,40]
[341396359,1730862774787,-834.395821,0.00039,120]
[341396360,1730862774797,-167.21,0.00039077,2]
[341396361,1730862774806,-150.0,0.00039272,14]
[341396362,1730862774816,-500.0,0.00039272,14]
[341396363,1730862774826,-569.0,0.00039272,14]
[341396364,1730862774838,-153.01931849,0.00039272,14]
[341396365,1730862774849,-30437.64771016,0.000394,120]
[341396366,1730862774858,-180.0,0.00039433,2]
[341396367,1730862774868,-500.0,0.00039542,2]
[341396368,1730862774881,-500.0,0.00039542,2]
[341396369,1730862774892,-500.0,0.00039542,2]
[341396370,1730862774902,-500.0,0.00039542,2]
[341396371,1730862774911,-500.0,0.00039542,2]
[341396372,1730862774921,-500.0,0.00039542,2]
[341396373,1730862774931,-500.0,0.00039542,2]
[341396374,1730862774943,-500.0,0.00039542,2]
[341396375,1730862774952,-500.0,0.00039542,2]
[341396376,1730862774962,-500.0,0.00039542,2]
[341396377,1730862774972,-500.0,0.00039542,2]
[341396378,1730862774981,-150.0,0.00039546,14]
[341396379,1730862774991,-771.69951547,0.00039546,14]
[341396380,1730862775001,-569.0,0.00039546,14]
[341396381,1730862775011,-256.00568647,0.00039642,5]
[341396382,1730862775021,-152.371,0.00039668,2]
[341396383,1730862775030,-4231.353,0.00039668,2]
[341396384,1730862775041,-1155.35,0.00039668,2]
[341396385,1730862775051,-1000.0,0.00039668,120]
[341396386,1730862775060,-1060.36,0.00039668,120]
[341396387,1730862775070,-156.75,0.00039671,2]
[341396388,1730862775080,-500.0,0.00039683,7]
[341396389,1730862775089,-500.0,0.00039683,7]
[341396390,1730862775099,-500.0,0.00039683,7]
[341396391,1730862775109,-500.0,0.00039683,7]
[341396392,1730862775119,-500.0,0.00039683,7]
[341396393,1730862775132,-500.0,0.00039683,7]
[341396394,1730862775141,-500.0,0.00039683,7]
[341396395,1730862775151,-500.0,0.00039683,7]
[341396396,1730862775160,-500.0,0.00039683,7]
[341396397,1730862775170,-500.0,0.00039683,7]
[341396398,1730862775180,-500.0,0.00039683,7]
[341396399,1730862775189,-500.0,0.00039683,7]
[341396400,1730862775199,-629.19,0.00039683,7]
[341396401,1730862775209,-271.81,0.000397,14]
[341396402,1730862775219,-8576.0,0.00039701,2]
[341396403,1730862775230,-1005.89693676,0.00039742,5]
[341396404,1730862775240,-167.21,0.00039758,2]
[341396405,1730862775250,-150.0,0.0003982,14]
[341396406,1730862775260,-569.0,0.0003982,14]
[341396407,1730862775269,-158.06,0.00039881,120]
[341396408,1730862775279,-291.046,0.00039999,2]
[341396409,1730862775289,-458.731,0.00039999,2]
[341396410,1730862775299,-437.997,0.00039999,2]
[341396411,1730862775309,-1262.223,0.00039999,2]
[341396412,1730862775320,-959.271,0.00039999,2]
[341396413,1730862775329,-960.609,0.00039999,2]
[341396414,1730862775339,-500.0,0.0004,120]
[341396415,1730862775349,-900.0,0.0004,41]
[341396416,1730862775359,-224.8906282,0.0004,120]
[341396417,1730862775368,-400.0,0.0004,120]
[341396418,1730862775381,-2000.0,0.0004,30]
[341396419,1730862775391,-501.5369016,0.0004,30]
[341396420,1730862775400,-1154.83,0.0004,120]
[341396421,1730862775410,-12499.99,0.0004,120]
[341396422,1730862775420,-12500.0,0.0004,120]
[341396423,1730862775430,-180.7,0.0004,2]
[341396424,1730862775439,-151.0,0.00040027,120]
[341396425,1730862775449,-3993.44343,0.0004008,2]
[341396426,1730862775459,-253.47167927,0.00040094,14]
[341396427,1730862775469,-569.0,0.00040094,14]
[341396428,1730862775478,-500.0,0.00040273,50]
[341396429,1730862775487,-500.0,0.00040273,51]
[341396430,1730862775497,-500.0,0.00040273,52]
[341396431,1730862775506,-500.0,0.00040273,53]
[341396432,1730862775516,-500.0,0.00040273,54]
[341396433,1730862775525,-473.26834753,0.00040273,55]
[341396434,1730862775534,-2866.5208734,0.00040288,7]
[341396435,1730862775544,-111157.32006344,0.00040288,7]
[341396436,1730862775553,-3131.4420451,0.0004032,2]
[341396437,1730862775563,-105440.0,0.00040347,120]
[341396438,1730862775572,-1060.36,0.00040353,120]
[341396439,1730862775582,-569.0,0.00040368,14]
[341396440,1730862775591,-12500.0,0.00040375,120]
[341396441,1730862775601,-167.21,0.0004044,2]
[341396442,1730862775610,-169411.74016156,0.00040447,7]
[341396443,1730862775620,-488.560653,0.00040535,120]
[341396444,1730862775632,-1368.0,0.00040547,15]
[341396445,1730862775642,-150.0,0.0004057,10]
[341396446,1730862775652,-569.0,0.00040642,14]
[341396447,1730862775661,-500.0,0.0004067,2]
[341396448,1730862775671,-12500.0,0.0004075,120]
[341396449,1730862775680,-438.83413382,0.00040794,120]
[341396450,1730862775689,-500.0,0.00040821,120]
[341396451,1730862775699,-500.0,0.00040821,120]
[341396452,1730862775708,-500.0,0.00040821,120]
[341396453,1730862775717,-528.04942579,0.00040821,120]
[341396454,1730862775726,-1000.0,0.0004089,120]
[341396455,1730862775735,-484.62,0.00040898,2]
[341396456,1730862775744,-1873.9,0.000409,2]
[341396457,1730862775754,-271.81,0.000409,14]
[341396458,1730862775762,-569.0,0.00040916,14]
[341396459,1730862775772,-170.33,0.00040933,2]
[341396460,1730862775782,-5876.76498496,0.00040991,7]
[341396461,1730862775791,-2314.0,0.00041,4]
[341396462,1730862775800,-2000.0,0.00041,120]
[341396463,1730862775810,-3000.0,0.00041,90]
[341396464,1730862775819,-900.0,0.00041,42]
[341396465,1730862775828,-1000.0,0.00041,30]
[341396466,1730862775839,-650.0,0.00041,120]
[341396467,1730862775852,-1000.0,0.00041038,120]
[341396468,1730862775862,-1000.0,0.00041038,2]
[341396469,1730862775871,-1060.36,0.00041038,120]
[341396470,1730862775883,-1000.0,0.00041051,2]
[341396471,1730862775892,-167.3,0.00041069,2]
[341396472,1730862775902,-1000.0,0.00041095,120]
[341396473,1730862775911,-500.0,0.00041095,14]
[341396474,1730862775921,-500.0,0.00041095,14]
[341396475,1730862775931,-301.91069929,0.00041095,14]
[341396476,1730862775940,-500.0,0.00041095,2]
[341396477,1730862775950,-500.0,0.00041095,2]
[341396478,1730862775959,-500.0,0.00041095,2]
[341396479,1730862775969,-500.0,0.00041095,2]
[341396480,1730862775978,-500.0,0.00041095,2]
[341396481,1730862775987,-500.0,0.00041095,2]
[341396482,1730862775996,-500.0,0.00041095,2]
[341396483,1730862776006,-154.76376676,0.00041095,2]
[341396484,1730862776015,-500.0,0.00041095,14]
[341396485,1730862776024,-500.0,0.00041095,14]
[341396486,1730862776033,-500.0,0.00041095,14]
[341396487,1730862776043,-515.34205945,0.00041095,14]
[341396488,1730862776052,-500.0,0.00041095,60]
[341396489,1730862776061,-500.0,0.00041095,60]
[341396490,1730862776071,-500.0,0.00041095,60]
[341396491,1730862776081,-500.0,0.00041095,60]
[341396492,1730862776090,-500.0,0.00041095,60]
[341396493,1730862776100,-500.0,0.00041095,60]
[341396494,1730862776109,-606.92981769,0.00041095,60]
[341396495,1730862776119,-500.0,0.00041095,14]
[341396496,1730862776133,-500.0,0.00041095,14]
[341396497,1730862776142,-500.0,0.00041095,14]
[341396498,1730862776153,-500.0,0.00041095,14]
[341396499,1730862776162,-500.0,0.00041095,14]
[341396500,1730862776172,-500.0,0.00041095,14]
[341396501,1730862776182,-500.0,0.00041095,14]
[341396502,1730862776191,-500.0,0.00041095,14]
[341396503,1730862776201,-500.0,0.00041095,14]
[341396504,1730862776210,-500.0,0.00041095,14]
[341396505,1730862776220,-500.0,0.00041095,14]
[341396506,1730862776230,-500.0,0.00041095,14]
[341396507,1730862776239,-500.0,0.00041095,14]
[341396508,1730862776249,-500.0,0.00041095,14]
[341396509,1730862776258,-500.0,0.00041095,14]
[341396510,1730862776267,-500.0,0.00041095,14]
[341396511,1730862776277,-500.0,0.00041095,14]
[341396512,1730862776286,-500.0,0.00041095,14]
[341396513,1730862776296,-500.0,0.00041095,14]
[341396514,1730862776306,-500.0,0.00041095,14]
[341396515,1730862776315,-500.0,0.00041095,14]
[341396516,1730862776325,-500.0,0.00041095,14]
[341396517,1730862776334,-471.31230881,0.00041095,14]
[341396518,1730862776344,-500.0,0.00041095,14]
[341396519,1730862776355,-500.0,0.00041095,14]
[341396520,1730862776366,-500.0,0.00041095,14]
[341396521,1730862776381,-493.71770745,0.00041095,14]
[341396522,1730862776391,-2000.0,0.00041095,120]
[341396523,1730862776401,-2000.0,0.00041095,120]
[341396524,1730862776411,-2000.0,0.00041095,120]
[341396525,1730862776420,-2000.0,0.00041095,120]
[341396526,1730862776430,-2000.0,0.00041095,120]
[341396527,1730862776440,-2000.0,0.00041095,120]
[341396528,1730862776450,-2000.0,0.00041095,120]
[341396529,1730862776459,-2000.0,0.00041095,120]
[341396530,1730862776469,-2000.0,0.00041095,120]
[341396531,1730862776478,-2000.0,0.00041095,120]
[341396532,1730862776488,-2000.0,0.00041095,120]
[341396533,1730862776497,-2108.44444486,0.00041095,120]
[341396534,1730862776506,-150.0,0.00041096,2]
[341396535,1730862776515,-151.0,0.00041096,14]
[341396536,1730862776525,-151.0,0.00041096,14]
[341396537,1730862776534,-151.0,0.00041096,14]
[341396538,1730862776543,-151.0,0.00041096,14]
[341396539,1730862776552,-151.0,0.00041096,14]
[341396540,1730862776561,-151.0,0.00041096,14]
[341396541,1730862776570,-256.54332,0.00041096,14]
[341396542,1730862776580,-1412.81619271,0.000411,2]
[341396543,1730862776590,-12500.0,0.00041125,120]
[341396544,1730862776599,-569.0,0.0004119,14]
[341396545,1730862776608,-1000.0,0.00041256,5]
[341396546,1730862776618,-276.28488547,0.0004128,2]
[341396547,1730862776632,-3993.44343,0.0004133,8]
[341396548,1730862776642,-500.0,0.000414,120]
[341396549,1730862776652,-3789.540946,0.00041452,2]
[341396550,1730862776662,-569.0,0.00041464,14]
[341396551,1730862776671,-2621.2897863,0.00041472,2]
[341396552,1730862776680,-2111.1375274,0.00041472,2]
[341396553,1730862776736,-19659.54024722,0.0004148,2]
[341396554,1730862776746,-600000.999,0.0004148,30]
[341396555,1730862776755,-700.0,0.000415,15]
[341396556,1730862776764,-700.0,0.000415,15]
[341396557,1730862776773,-700.0,0.000415,15]
[341396558,1730862776782,-700.0,0.000415,15]
[341396559,1730862776791,-700.0,0.000415,15]
[341396560,1730862776800,-700.0,0.000415,15]
[341396561,1730862776809,-700.0,0.000415,15]
[341396562,1730862776818,-700.0,0.000415,15]
[341396563,1730862776827,-700.0,0.000415,15]
[341396564,1730862776837,-706.53960419,0.000415,15]
[341396565,1730862776848,-1430609.61163741,0.000415,45]
[341396566,1730862776858,-150.0,0.000415,2]
[341396567,1730862776867,-1458.78,0.00041577,2]
[341396568,1730862776879,-1000.0,0.00041643,120]
[341396569,1730862776888,-500.0,0.00041644,60]
[341396570,1730862776898,-34772.0,0.00041655,10]
[341396571,1730862776907,-236.77374056,0.000417,7]
[341396572,1730862776917,-1060.36,0.00041723,120]
[341396573,1730862776927,-150.0,0.00041735,2]
[341396574,1730862776936,-569.0,0.00041738,14]
[341396575,1730862776945,-150.0,0.00041768,2]
[341396576,1730862776954,-150.0,0.00041811,2]
[341396577,1730862776963,-150.0,0.0004184,2]
[341396578,1730862776972,-200000.0,0.000419,120]
[341396579,1730862776981,-271.81,0.000419,60]
[341396580,1730862776990,-339.5935685,0.00042,120]
[341396581,1730862776998,-200000.0,0.00042,120]
[341396582,1730862777009,-900.0,0.00042,43]
[341396583,1730862777018,-1000.0,0.00042,30]
[341396584,1730862777027,-2000.0,0.00042,60]
[341396585,1730862777036,-1364.0,0.00042,120]
[341396586,1730862777045,-900.0,0.00042,7]
[341396587,1730862777054,-400.0,0.00042,120]
[341396588,1730862777063,-2000.0,0.00042,120]
[341396589,1730862777071,-520.23861705,0.00042,120]
[341396590,1730862777085,-313.14564807,0.00042,2]
[341396591,1730862777094,-569.0,0.00042012,14]
[341396592,1730862777103,-500.46660654,0.00042014,10]
[341396593,1730862777112,-528.21002232,0.00042014,10]
[341396594,1730862777121,-510.79559959,0.00042014,10]
[341396595,1730862777132,-509.10019252,0.00042014,10]
[341396596,1730862777141,-514.47777497,0.00042014,10]
[341396597,1730862777149,-1600.9852686,0.00042071,2]
[341396598,1730862777158,-200000.0,0.000421,120]
[341396599,1730862777167,-500.0,0.000421,14]
[341396600,1730862777176,-150.0,0.00042165,30]
[341396601,1730862777186,-150.0,0.00042165,30]
[341396602,1730862777195,-150.0,0.00042165,30]
[341396603,1730862777203,-150.0,0.00042165,30]
[341396604,1730862777212,-150.0,0.00042165,30]
[341396605,1730862777221,-150.0,0.00042165,30]
[341396606,1730862777231,-150.0,0.00042177,2]
[341396607,1730862777239,-1000.0,0.00042191,120]
[341396608,1730862777249,-200000.0,0.000422,120]
[341396609,1730862777258,-159.530206,0.0004222,2]
[341396610,1730862777267,-150.0,0.00042265,30]
[341396611,1730862777277,-590.61757299,0.00042277,14]
[341396612,1730862777286,-569.0,0.00042286,14]
[341396613,1730862777295,-152.0,0.00042303,3]
[341396614,1730862777305,-150.0,0.00042364,30]
[341396615,1730862777315,-1026.69206559,0.00042408,120]
[341396616,1730862777324,-1060.36,0.00042408,120]
[341396617,1730862777334,-150.0,0.00042458,30]
[341396618,1730862777343,-150.0,0.00042464,30]
[341396619,1730862777352,-158.06,0.00042465,120]
[341396620,1730862777361,-25000.0,0.000425,120]
[341396621,1730862777370,-569.0,0.0004256,14]
[341396622,1730862777383,-150.0,0.00042564,30]
[341396623,1730862777393,-3993.44343,0.0004258,14]
[341396624,1730862777402,-161.42,0.00042593,120]
[341396625,1730862777411,-500.0,0.000426,14]
[341396626,1730862777420,-761.29,0.00042603,30]
[341396627,1730862777430,-427.45,0.00042603,30]
[341396628,1730862777439,-761.29,0.00042603,30]
[341396629,1730862777448,-761.29,0.00042603,30]
[341396630,1730862777458,-761.29,0.00042603,30]
[341396631,1730862777467,-761.29,0.00042603,30]
[341396632,1730862777476,-761.29,0.00042603,30]